bitfinex-derivatives/quotes_SOLF0:USTF0_20241203
["timestamp","ask_amount","ask_price","bid_price","bid_amount"]
[1733238482135,2.2086,226.32,226.26,2.2091]
[1733238482342,2.575,226.43,226.23,5.3987]
[1733238482537,25.11195894,226.42,226.23,5.3987]
[1733238482736,2.2082,226.37,226.29,2.2088]
[1733238483036,25.11195894,226.42,226.23,5.3987]
[1733238483539,25.11195894,226.42,226.24,2.6288]
[1733238483932,2.575,226.43,226.26,19.85115894]
[1733238484132,5.88,226.47,226.26,19.85115894]
[1733238484531,8.08055904,226.47,226.26,19.85115894]
[1733238484731,2.7498,226.46,226.26,19.85115894]
[1733238485239,8.6298,226.46,226.26,19.85115894]
[1733238485440,2.2074,226.44,226.3,19.85115894]
[1733238485639,8.6298,226.46,226.3,19.85115894]
[1733238486540,2.7498,226.46,226.26,19.85115894]
[1733238486934,19.85115894,226.43,226.24,2.6288]
[1733238487139,8.6298,226.46,226.26,19.85115894]
[1733238487544,2.6019,226.48,226.3,19.85115894]
[1733238487740,4.80857643,226.48,226.3,19.85115894]
[1733238488239,2.2072,226.46,226.4,2.2077]
[1733238488434,2.2072,226.46,226.3,19.85115894]
[1733238488639,4.80857643,226.48,226.3,19.85115894]
[1733238488640,2.6019,226.48,226.3,19.85115894]
[1733238488945,5.88,226.51,226.3,19.85115894]
[1733238488946,2.26390948,226.49,226.3,19.85115894]
[1733238489543,5.88,226.52,226.3,19.85115894]
[1733238489747,2.2071,226.47,226.3,19.85115894]
[1733238489943,2.5565,226.57,226.38,19.85115894]
[1733238489944,5.88,226.56,226.38,19.85115894]
[1733238490140,2.5565,226.57,226.39,8.0023]
[1733238490739,2.5565,226.57,226.48,2.207]
[1733238490941,2.5565,226.57,226.39,8.0023]
[1733238491735,19.85115894,226.55,226.39,8.0023]
[1733238492045,19.85115894,226.51,226.39,5.2735]
[1733238492340,19.85115894,226.47,226.31,2.7288]
[1733238492742,19.85115894,226.47,226.26,1.10457187]
[1733238492936,2.2075,226.43,226.36,2.2081]
[1733238493138,2.2075,226.43,226.26,2.7288]
[1733238493338,19.85115894,226.44,226.26,2.7288]
[1733238493540,2.2076,226.42,226.36,2.2081]
[1733238493743,2.2076,226.42,226.26,2.7288]
[1733238493944,19.85115894,226.48,226.26,2.7288]
[1733238494147,2.208,226.39,226.26,2.7288]
[1733238494438,19.85115894,226.42,226.26,2.7288]
[1733238494840,8.4368,226.41,226.26,2.7288]
[1733238495339,8.4368,226.41,226.23,2.5606]
[1733238495541,2.209,226.28,226.21,2.2096]
[1733238495743,19.85115894,226.34,226.18,2.8037]
[1733238495941,19.85115894,226.34,226.13,25.05955894]
[1733238496545,22.07138845,226.34,226.13,25.05955894]
[1733238497048,19.85115894,226.3,226.13,25.05955894]
[1733238497247,2.2099,226.19,226.09,2.2108]
[1733238497443,19.85115894,226.25,226.05,2.18332146]
[1733238497638,19.85115894,226.25,226.04,19.85115894]
[1733238497841,2.2105,226.13,226.04,22.06245894]
[1733238498044,5.84,226.16,226.04,19.85115894]
[1733238498247,5.84,226.18,226.02,5.5368]
[1733238498449,5.84,226.18,226.02,25.38795894]
[1733238498847,5.84,226.18,226.13,2.2104]
[1733238499046,2.2096,226.22,226.1,19.85115894]
[1733238499240,8.12442863,226.25,226.1,19.85115894]
[1733238499241,2.26442863,226.25,226.1,19.85115894]
[1733238499448,8.4907,226.29,226.11,2.722]
[1733238499847,10.68344569,226.29,226.11,2.722]
[1733238500047,32.21406374,226.27,226.07,32.21406374]
[1733238500446,32.21406374,226.23,226.03,34.93606374]
[1733238500945,32.21406374,226.23,226.06,2.2111]
[1733238501145,5.2526,226.22,226.06,2.2111]
[1733238501343,2.2101,226.18,226.09,2.2109]
[1733238501547,5.2526,226.22,226.09,2.2109]
[1733238502449,5.2526,226.22,226.03,34.93606374]
[1733238502659,32.21406374,226.27,226.07,32.21406374]
[1733238502960,5.86,226.26,226.07,32.21406374]
[1733238503159,4.82344569,226.29,226.12,32.21406374]
[1733238503553,32.21406374,226.27,226.08,32.21406374]
[1733238503765,32.21406374,226.27,226.04,5.86]
[1733238503766,32.21406374,226.27,226.04,32.21406374]
[1733238504257,32.21406374,226.23,226.04,32.21406374]
[1733238504565,5.86,226.22,226.04,32.21406374]
[1733238504756,5.86,226.22,226.08,2.2109]
[1733238504957,5.86,226.22,226.04,32.21406374]
[1733238505357,32.21406374,226.19,226.03,2.722]
[1733238505659,2.6284,226.21,226.03,2.722]
[1733238506252,5.86,226.22,226.04,32.21406374]
[1733238506454,32.21406374,226.23,226.04,32.21406374]
[1733238506657,34.42436456,226.23,226.04,32.21406374]
[1733238506863,34.42436456,226.23,226.03,2.722]
[1733238506864,2.2095,226.24,226.13,2.2104]
[1733238507166,2.18206046,226.23,226.08,32.21406374]
[1733238507364,2.762,226.27,226.08,32.21406374]
[1733238507562,5.86,226.28,226.03,2.722]
[1733238507563,2.15927767,226.28,226.13,32.21406374]
[1733238507863,34.97606374,226.34,226.14,2.7043]
[1733238508061,2.2093,226.25,226.14,2.7043]
[1733238508359,34.97606374,226.34,226.14,2.7043]
[1733238508561,2.762,226.34,226.17,32.21406374]
[1733238508959,2.762,226.34,226.15,5.4295]
[1733238509163,34.97606374,226.34,226.15,37.64356374]
[1733238509669,34.97606374,226.34,226.15,5.4295]
[1733238509967,32.21406374,226.3,226.14,2.7043]
[1733238510163,5.86,226.29,226.14,2.7043]
[1733238510567,32.21406374,226.26,226.1,2.2107]
[1733238510768,32.21406374,226.26,226.06,8.1028]
[1733238511166,32.21406374,226.26,226.11,2.2107]
[1733238511358,32.21406374,226.26,226.06,8.1028]
[1733238511764,32.21406374,226.26,226.1,2.2108]
[1733238511959,5.86,226.29,226.08,32.21406374]
[1733238512167,2.2099,226.19,226.13,2.2104]
[1733238512362,5.86,226.29,226.08,32.21406374]
[1733238512965,46.0,226.32,226.12,32.21406374]
[1733238513164,2.2091,226.28,226.21,2.2096]
[1733238513465,5.86,226.31,226.16,32.21406374]
[1733238513864,2.2085,226.34,226.28,2.209]
[1733238514069,2.17617058,226.37,226.2,32.21406374]
[1733238514271,5.86,226.4,226.24,32.21406374]
[1733238514464,2.208,226.39,226.24,32.21406374]
[1733238514668,2.22747867,226.4,226.28,32.21406374]
[1733238515062,2.22747867,226.4,226.32,32.21406374]
[1733238515260,2.17466122,226.52,226.32,32.21406374]
[1733238515461,2.2072,226.47,226.32,32.21406374]
[1733238515666,2.26595974,226.49,226.32,32.21406374]
[1733238515867,32.21406374,226.57,226.36,32.21406374]
[1733238516163,303.22561102,226.54,226.37,5.5288]
[1733238517068,2.207,226.49,226.41,2.2077]
[1733238517266,301.0023343,226.54,226.4,32.21406374]
[1733238517467,301.0023343,226.54,226.37,5.5288]
[1733238517868,303.20732097,226.54,226.37,5.5288]
[1733238518069,303.20732097,226.54,226.37,8.2521]
[1733238518468,2.20498667,226.54,226.37,8.2521]
[1733238518661,32.21406374,226.58,226.37,8.2521]
[1733238518867,5.86,226.57,226.37,8.2521]
[1733238519065,2.2063,226.57,226.48,2.2071]
[1733238519271,32.21406374,226.61,226.4,32.21406374]
[1733238519572,5.84,226.6,226.4,32.21406374]
[1733238520867,5.84,226.6,226.44,2.2075]
[1733238521666,5.84,226.6,226.4,32.21406374]
[1733238521667,5.84,226.6,226.43,2.2076]
[1733238521866,32.21406374,226.57,226.37,5.5288]
[1733238522067,2.2071,226.48,226.37,5.5288]
[1733238522273,2.17556559,226.48,226.37,2.8158]
[1733238522471,5.82,226.49,226.31,32.21406374]
[1733238522768,5.82,226.49,226.28,5.3986]
[1733238522769,7.99070646,226.49,226.35,32.21406374]
[1733238523266,10.19770646,226.49,226.35,32.21406374]
[1733238523472,7.99070646,226.49,226.35,32.21406374]
[1733238523668,5.82,226.49,226.35,32.21406374]
[1733238524277,5.82,226.57,226.39,32.21406374]
[1733238525170,32.21406374,226.56,226.34,32.21406374]
[1733238525775,2.2073,226.46,226.39,2.2079]
[1733238525973,32.21406374,226.56,226.34,32.21406374]
[1733238526172,32.21406374,226.52,226.3,32.21406374]
[1733238526376,2.2078,226.41,226.34,2.2084]
[1733238526567,5.82,226.47,226.29,2.6008]
[1733238526772,13.9807,226.46,226.29,2.6008]
[1733238526976,2.2081,226.38,226.31,2.2087]
[1733238527275,32.21406374,226.44,226.23,32.21406374]
[1733238527474,2.17062423,226.44,226.23,34.97856374]
[1733238527667,13.9807,226.46,226.23,34.97856374]
[1733238527868,5.82,226.45,226.27,32.21406374]
[1733238528077,2.1832223,226.45,226.27,32.21406374]
[1733238528376,5.82,226.46,226.31,32.21406374]
[1733238528675,2.2075,226.44,226.38,2.2081]
[1733238528971,2.2075,226.44,226.31,32.21406374]
[1733238528972,5.82,226.46,226.31,32.21406374]
[1733238529173,5.82,226.46,226.27,32.21406374]
[1733238529174,5.82,226.46,226.35,32.21406374]
[1733238529372,5.82,226.53,226.36,2.7645]
[1733238529767,5.82,226.53,226.41,2.2078]
[1733238530073,5.82,226.53,226.36,2.7645]
[1733238531484,2.2071,226.48,226.39,2.208]
[1733238531673,32.21406374,226.54,226.36,2.7645]
[1733238531970,2.2073,226.46,226.39,2.2079]
[1733238532176,32.21406374,226.42,226.08,0.77326085]
[1733238532373,32.21406374,226.38,226.09,5.82]
[1733238532573,32.21406374,226.26,226.11,2.2107]
[1733238532769,32.21406374,226.26,226.06,32.21406374]
[1733238532979,32.21406374,226.26,226.02,34.45319178]
[1733238533175,5.82,226.31,226.02,3.34407438]
[1733238533176,32.21406374,226.18,226.02,3.34407438]
[1733238533379,32.21406374,226.18,226.17,1.76752066]
[1733238533575,32.21406374,226.18,226.02,1.10494634]
[1733238533878,32.21406374,226.18,226.06,2.2112]
[1733238534177,32.21406374,226.22,226.01,5.82]
[1733238534477,34.458058,226.22,226.01,5.82]
[1733238534876,2.24399426,226.22,226.04,32.21406374]
[1733238535079,2.17520351,226.23,226.08,32.21406374]
[1733238535878,2.6037,226.3,226.01,5.82]
[1733238535879,2.20417968,226.26,226.01,5.82]
[1733238536079,2.2092,226.27,226.08,32.21406374]
[1733238536273,2.6037,226.3,226.08,32.21406374]
[1733238536470,2.2086,226.33,226.12,32.21406374]
[1733238536679,2.2086,226.33,226.16,32.21406374]
[1733238536877,5.4713,226.37,226.16,32.21406374]
[1733238537078,2.2083,226.36,226.26,2.2092]
[1733238537273,5.4713,226.37,226.17,5.82]
[1733238537479,5.4713,226.37,226.16,32.21406374]
[1733238537876,32.21406374,226.34,226.13,8.0277]
[1733238538183,32.21406374,226.3,226.13,8.0277]
[1733238538579,32.21406374,226.3,226.2,2.2098]
[1733238538774,32.21406374,226.3,226.13,8.0277]
[1733238538980,2.2097,226.22,226.13,2.2105]
[1733238539175,5.4713,226.37,226.05,32.21406374]
[1733238539382,32.21406374,226.34,226.11,32.21406374]
[1733238539778,2.209,226.29,226.21,2.2097]
[1733238539983,34.46823711,226.34,226.11,32.21406374]
[1733238540375,2.2088,226.31,226.11,32.21406374]
[1733238540680,32.21406374,226.3,226.11,32.21406374]
[1733238540873,2.2093,226.26,226.08,5.82]
[1733238541073,2.22740645,226.25,226.09,32.21406374]
[1733238541384,2.2093,226.26,226.17,2.21]
[1733238541677,40.21678491,226.3,226.09,32.21406374]
[1733238541880,40.21678491,226.3,226.06,2.2112]
[1733238541881,2.2104,226.14,226.06,2.2112]
[1733238542084,2.21811545,226.15,226.06,2.2112]
[1733238542281,32.21406374,226.17,226.01,2.7071]
[1733238542478,2.2107,226.12,226.03,2.2114]
[1733238542682,32.21406374,226.13,226.01,2.7071]
[1733238542877,32.21406374,226.13,225.96,2.5672]
[1733238543083,32.21406374,226.09,225.98,2.2119]
[1733238543283,38.03406374,226.09,225.85,5.1748]
[1733238543583,2.2114,226.05,225.86,2.5672]
[1733238543886,40.20934508,226.09,225.86,2.5672]
[1733238544084,32.21406374,226.04,225.86,2.5672]
[1733238544678,32.21406374,226.08,225.86,2.5672]
[1733238544883,8.3732,226.11,225.91,32.21406374]
[1733238545085,8.3732,226.11,226.03,2.2115]
[1733238545282,8.3732,226.11,225.91,32.21406374]
[1733238545283,5.82,226.11,225.91,32.21406374]
[1733238545486,5.82,226.11,225.95,32.21406374]
[1733238545680,2.7843,226.12,225.95,32.21406374]
[1733238545881,5.82,226.15,225.95,32.21406374]
[1733238546077,8.02404821,226.15,225.95,32.21406374]
[1733238546280,2.2105,226.13,226.05,2.2113]
[1733238546885,32.21406374,226.13,225.95,32.21406374]
[1733238547186,32.21406374,226.05,225.86,2.5672]
[1733238547387,5.82,226.04,225.86,2.5672]
[1733238547583,8.4553,226.04,225.86,2.5672]
[1733238547781,32.21406374,226.01,225.86,2.5672]
[1733238547986,34.45551371,226.01,225.86,2.5672]
[1733238548680,2.2124,225.94,225.87,2.213]
[1733238549182,2.2124,225.94,225.74,32.21406374]
[1733238549183,5.82,225.94,225.74,32.21406374]
[1733238549384,5.82,225.94,225.75,2.5726]
[1733238550584,5.82,225.94,225.81,2.2136]
[1733238550985,2.2129,225.89,225.81,2.2136]
[1733238551187,5.82,225.94,225.78,32.21406374]
[1733238551587,2.24144997,226.01,225.82,32.21406374]
[1733238551791,34.65937274,228.19,225.9,32.21406374]
[1733238551792,46.02,226.29,225.9,32.21406374]
[1733238551984,4.4338821,226.11,225.94,32.21406374]
[1733238552181,2.2108,226.11,225.94,32.21406374]
[1733238552385,5.2872,226.15,225.95,2.6]
[1733238552682,34.98436374,226.12,225.95,2.2123]
[1733238552888,34.98436374,226.12,225.89,32.21406374]
[1733238553490,2.2118,226.0,225.88,2.17063006]
[1733238553693,32.21406374,226.04,225.91,2.2126]
[1733238553884,32.21406374,226.04,225.87,5.4495]
[1733238553885,2.7099,226.03,225.87,2.8106]
[1733238554080,2.2123,225.95,225.78,5.8]
[1733238554288,32.21406374,226.0,225.79,2.8106]
[1733238554684,2.7099,226.03,225.76,2.5667]
[1733238554685,32.21406374,225.96,225.76,2.5667]
[1733238554888,32.21406374,225.92,225.72,2.6625]
[1733238555190,2.7099,225.91,225.72,2.6625]
[1733238555794,2.2134,225.84,225.76,2.2141]
[1733238556088,2.2134,225.84,225.72,2.6625]
[1733238556291,2.2137,225.81,225.66,32.21406374]
[1733238556595,2.7099,225.91,225.7,32.21406374]
[1733238556992,4.89635608,225.91,225.7,32.21406374]
[1733238557289,32.21406374,225.89,225.66,32.21406374]
[1733238557497,32.21406374,225.85,225.64,5.8]
[1733238557697,5.8,225.84,225.64,5.8]
[1733238557897,2.214,225.78,225.71,2.2146]
[1733238558101,32.21406374,225.77,225.47,0.76732978]
[1733238558399,2.2147,225.71,225.63,2.2154]
[1733238558592,38.01406374,225.73,225.52,32.21406374]
[1733238559096,38.01406374,225.73,225.51,5.3646]
[1733238559097,32.21406374,225.69,225.51,5.3646]
[1733238559296,32.21406374,225.69,225.51,2.6771]
[1733238560998,32.21406374,225.69,225.47,0.76732978]
[1733238561300,32.21406374,225.69,225.48,32.21406374]
[1733238561499,32.21406374,225.72,225.48,32.21406374]
[1733238561700,2.2153,225.64,225.54,2.2162]
[1733238561898,5.8,225.63,225.47,0.76732978]
[1733238562196,2.2163,225.54,225.47,0.76732978]
[1733238562397,32.21406374,225.56,225.47,0.76732978]
[1733238562703,32.21406374,225.52,225.47,0.76732978]
[1733238562890,32.21406374,225.48,225.29,2.8079]
[1733238563291,34.40107381,225.52,225.29,2.8079]
[1733238563490,34.40107381,225.52,225.3,32.21406374]
[1733238563491,34.37712358,225.52,225.3,32.21406374]
[1733238563696,34.37712358,225.52,225.26,32.21406374]
[1733238563697,32.21406374,225.48,225.26,32.21406374]
[1733238563897,5.6138,225.47,225.26,32.21406374]
[1733238564092,5.6138,225.47,225.3,32.21406374]
[1733238564498,2.2171,225.46,225.36,2.218]
[1733238564690,2.2171,225.46,225.3,32.21406374]
[1733238564691,2.8185,225.47,225.3,32.21406374]
[1733238564895,5.82,225.52,225.34,32.21406374]
[1733238565198,38.03406374,225.52,225.3,32.21406374]
[1733238565393,40.24030771,225.52,225.3,32.21406374]
[1733238565602,2.217,225.47,225.36,2.218]
[1733238565802,2.217,225.47,225.3,32.21406374]
[1733238566099,32.21406374,225.48,225.26,32.21406374]
[1733238566500,32.21406374,225.56,225.34,32.21406374]
[1733238566697,5.82,225.55,225.46,2.217]
[1733238566904,5.82,225.55,225.42,32.21406374]
[1733238567203,5.82,225.55,225.34,35.00676374]
[1733238567403,32.21406374,225.52,225.34,2.7927]
[1733238567596,32.21406374,225.48,225.28,32.21406374]
[1733238567798,32.21406374,225.48,225.25,5.82]
[1733238567996,32.21406374,225.44,225.24,32.21406374]
[1733238568197,5.82,225.43,225.24,32.21406374]
[1733238568497,2.2178,225.39,225.3,2.2186]
[1733238569004,5.82,225.43,225.28,32.21406374]
[1733238569302,5.3338,225.6,225.32,32.21406374]
[1733238569496,32.21406374,225.56,225.36,32.21406374]
[1733238569696,2.217,225.47,225.38,2.2178]
[1733238570000,32.21406374,225.56,225.36,32.21406374]
[1733238570198,32.21406374,225.51,225.28,32.21406374]
[1733238570392,32.21406374,225.51,225.27,2.563]
[1733238570393,32.21406374,225.47,225.24,32.21406374]
[1733238570592,8.4651,225.46,225.24,32.21406374]
[1733238570794,8.4651,225.46,225.28,32.21406374]
[1733238571500,2.18963296,225.51,225.32,32.21406374]
[1733238571799,2.18963296,225.51,225.36,32.21406374]
[1733238572000,5.82,225.53,225.36,32.21406374]
[1733238572304,5.82,225.53,225.37,2.653]
[1733238573005,5.82,225.53,225.37,5.2137]
[1733238573701,32.21406374,225.46,225.11,4.441]
[1733238573906,2.2181,225.36,225.18,34.77476374]
[1733238574207,5.82,225.35,225.18,2.5607]
[1733238574401,32.21406374,225.37,225.18,34.77476374]
[1733238574402,5.82,225.34,225.18,34.77476374]
[1733238574795,5.82,225.39,225.18,34.77476374]
[1733238575206,54.0929,225.45,225.26,32.21406374]
[1733238575207,5.82,225.44,225.26,32.21406374]
[1733238575407,7.9529,225.45,225.27,2.7836]
[1733238575702,7.9529,225.45,225.3,32.21406374]
[1733238575901,32.21406374,225.72,225.36,32.21406374]
[1733238576106,32.21406374,225.72,225.4,32.21406374]
[1733238576107,5.4772,225.56,225.4,32.21406374]
[1733238576310,2.779,225.56,225.4,32.21406374]
[1733238576602,2.779,225.56,225.41,5.3117]
[1733238576802,32.21406374,225.53,225.28,2.6945]
[1733238577010,32.21406374,225.53,225.3,32.21406374]
[1733238577206,32.21406374,225.49,225.3,32.21406374]
[1733238577405,10.75890132,225.48,225.29,5.3117]
[1733238577908,32.21406374,225.45,225.29,5.3117]
[1733238578407,8.5182,225.48,225.36,2.218]
[1733238578801,2.2175,225.42,225.35,2.2181]
[1733238579002,32.21406374,225.46,225.29,5.3117]
[1733238579410,32.21406374,225.46,225.36,2.218]
[1733238579411,2.2173,225.44,225.36,2.218]
[1733238579608,8.5182,225.48,225.29,5.3117]
[1733238581200,32.21406374,225.42,225.18,2.6945]
[1733238581408,32.21406374,225.38,225.2,2.6075]
[1733238581608,5.8,225.37,225.23,2.2193]
[1733238581801,5.8,225.37,225.2,2.6075]
[1733238582103,2.7049,225.36,225.2,2.6075]
[1733238582305,2.7049,225.36,225.24,2.2192]
[1733238582611,32.21406374,225.34,225.16,32.21406374]
[1733238582801,2.2187,225.3,225.16,32.21406374]
[1733238583202,2.2184,225.33,225.26,2.219]
[1733238583406,2.7049,225.36,225.16,32.21406374]
[1733238584309,2.2188,225.29,225.22,2.2194]
[1733238584606,2.7049,225.36,225.16,32.21406374]
[1733238586112,32.21406374,225.34,225.12,34.77356374]
[1733238586313,32.21406374,225.3,225.12,2.5595]
[1733238587312,2.219,225.27,225.12,2.5595]
[1733238588505,32.21406374,225.3,225.12,2.5595]
[1733238589107,2.2192,225.25,225.19,2.2197]
[1733238589507,5.8,225.27,225.19,2.2197]
[1733238589715,5.8,225.27,225.21,2.2195]
[1733238590007,5.8,225.27,225.12,2.5595]
[1733238590413,5.8,225.27,225.17,2.2199]
[1733238590613,7.99117501,225.27,225.12,2.5595]
[1733238591115,32.21406374,225.3,225.12,2.5595]
[1733238591416,32.21406374,225.34,225.12,34.77356374]
[1733238592617,32.21406374,225.3,225.12,2.5595]
[1733238592813,2.2189,225.28,225.22,2.2194]
[1733238593017,2.2189,225.28,225.12,2.5595]
[1733238593018,32.21406374,225.34,225.12,2.5595]
[1733238593409,34.43236374,225.34,225.15,32.21406374]
[1733238593917,2.2184,225.33,225.27,2.2189]
[1733238594114,32.21406374,225.34,225.15,32.21406374]
[1733238594918,2.2186,225.32,225.27,2.2189]
[1733238595222,32.21406374,225.34,225.15,32.21406374]
[1733238595516,5.8,225.35,225.15,32.21406374]
[1733238595721,2.7049,225.36,225.19,32.21406374]
[1733238596419,2.7049,225.36,225.15,32.21406374]
[1733238596715,2.2185,225.32,225.27,2.2189]
[1733238596920,2.7049,225.36,225.15,32.21406374]
[1733238597317,2.2185,225.33,225.27,2.2189]
[1733238597522,2.7049,225.36,225.15,32.21406374]
[1733238598722,32.21406374,225.34,225.15,32.21406374]
[1733238598920,32.21406374,225.34,225.12,2.5595]
[1733238599521,2.2187,225.3,225.24,2.2192]
[1733238599718,32.21406374,225.34,225.12,2.5595]
[1733238600113,2.2192,225.25,225.12,2.5595]
[1733238600314,32.21406374,225.3,225.12,2.5595]
[1733238600513,2.7049,225.36,225.14,32.21406374]
[1733238600514,32.21406374,225.34,225.14,32.21406374]
[1733238601119,32.21406374,225.34,225.24,2.2192]
[1733238601323,32.21406374,225.34,225.14,32.21406374]
[1733238601823,32.21406374,225.34,225.12,2.5595]
[1733238602217,32.21406374,225.34,225.14,32.21406374]
[1733238602423,10.69793358,225.36,225.14,32.21406374]
[1733238602719,8.5049,225.36,225.15,1.11051086]
[1733238602921,8.5049,225.36,225.15,1.77672726]
[1733238603122,4.923,225.36,225.23,2.2193]
[1733238603322,4.923,225.36,225.18,32.21406374]
[1733238603323,2.7049,225.36,225.18,32.21406374]
[1733238603526,2.7049,225.36,225.19,2.5933]
[1733238603827,38.01406374,225.39,225.33,2.2183]
[1733238603828,32.21406374,225.39,225.33,2.2183]
[1733238604032,32.21406374,225.39,225.2,1.77650085]
[1733238604219,2.2179,225.38,225.25,2.2192]
[1733238604423,32.21406374,225.39,225.26,2.6531]
[1733238604822,2.218,225.37,225.26,2.6531]
[1733238605028,32.21406374,225.39,225.26,2.6531]
[1733238605227,2.2184,225.33,225.27,2.2189]
[1733238605426,32.21406374,225.39,225.19,5.2464]
[1733238605628,32.21406374,225.39,225.2,1.11033976]
[1733238605820,2.2189,225.28,225.23,2.2193]
[1733238606022,5.8,225.32,225.2,1.11033976]
[1733238606222,5.8,225.32,225.12,3.34247003]
[1733238606223,32.21406374,225.3,225.12,2.5595]
[1733238606419,32.21406374,225.3,225.18,2.2197]
[1733238606625,32.21406374,225.3,225.12,2.5595]
[1733238606626,2.5639,225.29,225.12,2.5595]
[1733238606826,2.5639,225.29,225.14,32.21406374]
[1733238607027,32.21406374,225.39,225.18,32.21406374]
[1733238607225,5.2694,225.4,225.22,32.21406374]
[1733238607425,5.2694,225.4,225.23,2.7872]
[1733238607629,2.2183,225.35,225.29,2.2187]
[1733238607829,32.21406374,225.39,225.23,2.7872]
[1733238608030,5.2694,225.4,225.23,2.7872]
[1733238608227,2.798,225.41,225.23,2.7872]
[1733238608425,32.21406374,225.47,225.26,32.21406374]
[1733238608625,32.21406374,225.47,225.27,2.7763]
[1733238608825,2.2173,225.45,225.38,2.2178]
[1733238609025,32.21406374,225.43,225.27,2.7763]
[1733238609229,32.21406374,225.43,225.27,3.88614452]
[1733238609433,2.2185,225.32,225.27,1.10984452]
[1733238609632,2.1876624,225.32,225.27,1.10984452]
[1733238610030,2.2186,225.31,225.27,1.10984452]
[1733238610230,5.8,225.38,225.27,1.10984452]
[1733238610432,32.21406374,225.35,225.22,2.2194]
[1733238610734,5.3283,225.34,225.17,2.7763]
[1733238610937,32.21406374,225.31,225.09,32.21406374]
[1733238611132,32.21406374,225.31,225.1,4.40525539]
[1733238611334,32.21406374,225.31,225.13,32.21406374]
[1733238611739,5.3283,225.34,225.13,32.21406374]
[1733238611930,5.3283,225.34,225.17,32.21406374]
[1733238612339,2.16844701,225.42,225.25,32.21406374]
[1733238612535,32.21406374,225.47,225.26,2.7617]
[1733238612737,32.21406374,225.47,225.26,8.2167]
[1733238613030,32.21406374,225.43,225.18,2.62714798]
[1733238613232,2.2184,225.33,225.18,32.21406374]
[1733238613537,5.76,225.37,225.19,2.7617]
[1733238613838,2.2183,225.34,225.28,2.2188]
[1733238614034,5.76,225.37,225.19,2.7617]
[1733238614339,5.76,225.37,225.19,5.5778]
[1733238614829,5.76,225.37,225.19,2.7617]
[1733238615034,32.21406374,225.35,225.19,2.7617]
[1733238615535,32.21406374,225.35,225.14,34.85296374]
[1733238615734,2.5598,225.34,225.14,34.85296374]
[1733238616133,2.5598,225.34,225.18,32.21406374]
[1733238616332,32.21406374,225.61,225.22,32.21406374]
[1733238616333,37.97406374,225.43,225.22,32.21406374]
[1733238616537,11.1922,225.46,225.35,2.2181]
[1733238616836,11.1922,225.46,225.26,32.21406374]
[1733238617133,5.4322,225.46,225.26,32.21406374]
[1733238617338,7.64058555,225.46,225.27,2.6469]
[1733238618131,2.2175,225.42,225.36,2.2181]
[1733238618435,32.21406374,225.65,225.4,32.21406374]
[1733238618639,32.21406374,225.65,225.33,5.76]
[1733238618640,2.567,225.6,225.41,5.3767]
[1733238618838,32.21406374,225.57,225.41,5.3767]
[1733238619434,2.567,225.6,225.41,5.3767]
[1733238619837,2.567,225.6,225.46,2.217]
[1733238620038,2.567,225.6,225.41,5.3767]
[1733238620340,2.567,225.6,225.49,32.21406374]
[1733238620537,2.567,225.6,225.17,82.83386374]
[1733238620538,32.21406374,225.56,225.17,82.83386374]
[1733238620841,32.21406374,225.56,225.34,32.21406374]
[1733238621135,32.21406374,225.52,225.29,2.8172]
[1733238621331,5.4993,225.51,225.45,2.2172]
[1733238621536,5.4993,225.51,225.4,32.21406374]
[1733238621742,5.76,225.55,225.4,32.21406374]
[1733238621942,7.9763,225.55,225.44,32.21406374]
[1733238622145,5.76,225.55,225.44,32.21406374]
[1733238622642,2.2163,225.54,225.4,32.21406374]
[1733238622844,5.76,225.55,225.4,32.21406374]
[1733238623239,5.76,225.55,225.36,32.21406374]
[1733238623546,32.21406374,225.51,225.28,32.21406374]
[1733238623738,32.21406374,225.43,225.24,32.21406374]
[1733238623942,13.7963,225.42,225.2,32.21406374]
[1733238624143,32.21406374,225.35,225.18,2.6301]
[1733238624445,2.2186,225.31,225.24,2.2192]